fUSD/lending_fUSD_20251210
["ID","MTS","AMOUNT","RATE_DAILY","PERIOD"]
[398102032,1765367442225,-500.0,0.00016671,2]
[398102033,1765367442234,-500.0,0.00016671,2]
[398102034,1765367442243,-500.0,0.00016671,2]
[398102035,1765367442253,-500.0,0.00016671,2]
[398102036,1765367442262,-500.0,0.00016671,2]
[398102037,1765367442271,-500.0,0.00016671,2]
[398102038,1765367442281,-218.68463274,0.00016671,2]
[398102039,1765367442290,-500.0,0.00016671,2]
[398102040,1765367442299,-500.0,0.00016671,2]
[398102041,1765367442308,-1500.0,0.00016768,2]
[398102042,1765367442318,-8510.7339,0.000169,2]
[398102043,1765367442327,-500.0,0.00016944,2]
[398102044,1765367442337,-500.0,0.00016944,2]
[398102045,1765367442347,-500.0,0.00016944,2]
[398102046,1765367442356,-500.0,0.00016944,2]
[398102047,1765367442365,-500.0,0.00016945,2]
[398102048,1765367442375,-500.0,0.00016945,2]
[398102049,1765367442383,-398.49565512,0.00016945,2]
[398102050,1765367442393,-300.0,0.00016945,2]
[398102051,1765367442403,-176.90352696,0.00016945,2]
[398102052,1765367442412,-500.0,0.00016945,2]
[398102053,1765367442422,-500.0,0.00016945,2]
[398102054,1765367442431,-500.0,0.00016945,2]
[398102055,1765367442441,-500.0,0.00016945,2]
[398102056,1765367442450,-500.0,0.00016945,2]
[398102057,1765367442460,-500.0,0.00016945,2]
[398102058,1765367442469,-239.16,0.00016945,2]
[398102059,1765367442479,-500.0,0.00016945,2]
[398102060,1765367442489,-500.0,0.00016945,2]
[398102061,1765367442498,-500.0,0.00016945,2]
[398102062,1765367442508,-558.78,0.00016945,2]
[398102063,1765367442518,-500.0,0.00016945,2]
[398102064,1765367442528,-500.0,0.00016945,2]
[398102065,1765367442537,-500.0,0.00016945,2]
[398102066,1765367442548,-500.0,0.00016945,2]
[398102067,1765367442557,-500.0,0.00016945,2]
[398102068,1765367442567,-500.0,0.00016945,2]
[398102069,1765367442577,-500.0,0.00016945,2]
[398102070,1765367442586,-500.0,0.00016945,2]
[398102071,1765367442596,-500.0,0.00016945,2]
[398102072,1765367442605,-500.0,0.00016945,2]
[398102073,1765367442615,-500.0,0.00016999,2]
[398102074,1765367442625,-500.0,0.00016999,2]
[398102075,1765367442634,-500.0,0.00016999,2]
[398102076,1765367442643,-500.0,0.00016999,2]
[398102077,1765367442653,-500.0,0.00016999,2]
[398102078,1765367442662,-500.0,0.00016999,2]
[398102079,1765367442672,-500.0,0.00016999,2]
[398102080,1765367442681,-500.0,0.00016999,2]
[398102081,1765367442690,-500.0,0.00016999,2]
[398102082,1765367442700,-574.28,0.00016999,2]
[398102083,1765367442709,-532.94,0.00016999,2]
[398102084,1765367442719,-500.0,0.00016999,2]
[398102086,1765367442729,-500.0,0.00016999,2]
[398102087,1765367442738,-500.0,0.00016999,2]
[398102088,1765367442747,-500.0,0.00016999,2]
[398102089,1765367442757,-500.0,0.00016999,2]
[398102090,1765367442766,-500.0,0.00016999,2]
[398102091,1765367442775,-500.0,0.00016999,2]
[398102092,1765367442785,-500.0,0.00016999,2]
[398102094,1765367442794,-500.0,0.00016999,2]
[398102095,1765367442803,-500.0,0.00016999,2]
[398102096,1765367442812,-500.0,0.00016999,2]
[398102097,1765367442821,-501.48279806,0.00016999,2]
[398102098,1765367442831,-510.30160486,0.00016999,2]
[398102099,1765367442840,-500.0,0.00016999,2]
[398102100,1765367442849,-500.0,0.00016999,2]
[398102101,1765367442859,-329.3512176,0.00016999,2]
[398102102,1765367442869,-500.0,0.00016999,2]
[398102103,1765367442878,-500.0,0.00016999,2]
[398102105,1765367442887,-2497.96823531,0.00017,2]
[398102106,1765367442897,-250.0,0.00017,2]
[398102107,1765367442906,-116937.02935456,0.00017,2]
[398102108,1765367442916,-2000.0,0.00017,2]
[398102109,1765367442926,-500.0,0.00017184,2]
[398102110,1765367442936,-500.0,0.00017218,2]
[398102111,1765367442946,-500.0,0.00017218,2]
[398102112,1765367442955,-500.0,0.00017218,2]
[398102113,1765367442965,-500.0,0.00017218,2]
[398102114,1765367442974,-500.0,0.00017219,2]
[398102115,1765367442988,-500.0,0.00017219,2]
[398102116,1765367442998,-300.0,0.00017219,2]
[398102117,1765367443008,-500.0,0.00017219,2]
[398102118,1765367443018,-500.0,0.00017219,2]
[398102119,1765367443029,-500.0,0.00017219,2]
[398102120,1765367443038,-500.0,0.00017219,2]
[398102121,1765367443048,-500.0,0.00017219,2]
[398102122,1765367443059,-500.0,0.00017219,2]
[398102123,1765367443069,-500.0,0.00017219,2]
[398102124,1765367443079,-500.0,0.00017219,2]
[398102125,1765367443089,-500.0,0.00017219,2]
[398102126,1765367443098,-558.78,0.00017219,2]
[398102127,1765367443108,-500.0,0.00017219,2]
[398102128,1765367443118,-500.0,0.00017219,2]
[398102129,1765367443127,-500.0,0.00017219,2]
[398102130,1765367443137,-500.0,0.00017219,2]
[398102131,1765367443146,-500.0,0.00017219,2]
[398102132,1765367443156,-500.0,0.00017219,2]
[398102133,1765367443165,-500.0,0.00017219,2]
[398102134,1765367443175,-500.0,0.00017219,2]
[398102135,1765367443185,-500.0,0.00017219,2]
[398102136,1765367443194,-500.0,0.00017219,2]
[398102137,1765367443203,-300.0,0.00017223,2]
[398102138,1765367443212,-574.19776068,0.00017271,2]
[398102139,1765367443222,-500.0,0.00017272,2]
[398102140,1765367443231,-500.0,0.00017272,2]
[398102141,1765367443240,-500.0,0.00017272,2]
[398102142,1765367443249,-500.0,0.00017272,2]
[398102143,1765367443259,-500.0,0.00017272,2]
[398102144,1765367443268,-500.0,0.00017272,2]
[398102145,1765367443278,-186.87910148,0.00017272,2]
[398102146,1765367443287,-500.0,0.00017273,2]
[398102147,1765367443297,-500.0,0.00017273,2]
[398102148,1765367443307,-500.0,0.00017273,2]
[398102149,1765367443316,-500.0,0.00017273,2]
[398102150,1765367443326,-500.0,0.00017273,2]
[398102151,1765367443336,-500.0,0.00017492,2]
[398102152,1765367443345,-500.0,0.00017492,2]
[398102153,1765367443355,-500.0,0.00017492,2]
[398102154,1765367443365,-500.0,0.00017492,2]
[398102155,1765367443376,-500.0,0.00017493,2]
[398102156,1765367443386,-500.0,0.00017493,2]
[398102157,1765367443399,-300.0,0.00017493,2]
[398102158,1765367443409,-500.0,0.00017493,2]
[398102159,1765367443418,-500.0,0.00017493,2]
[398102160,1765367443429,-500.0,0.00017493,2]
[398102161,1765367443441,-500.0,0.00017493,2]
[398102162,1765367443450,-500.0,0.00017493,2]
[398102163,1765367443460,-500.0,0.00017493,2]
[398102164,1765367443471,-500.0,0.00017493,2]
[398102165,1765367443480,-500.0,0.00017493,2]
[398102166,1765367443490,-500.0,0.00017493,2]
[398102167,1765367443499,-558.78,0.00017493,2]
[398102168,1765367443508,-500.0,0.00017493,2]
[398102170,1765367443518,-500.0,0.00017493,2]
[398102171,1765367443527,-439.78165907,0.00017493,2]
[398102172,1765367443537,-500.0,0.00017493,2]
[398102173,1765367443547,-500.0,0.00017493,2]
[398102174,1765367443557,-500.0,0.00017493,2]
[398102175,1765367443567,-500.0,0.00017493,2]
[398102176,1765367443578,-500.0,0.00017493,2]
[398102177,1765367443588,-500.0,0.00017493,2]
[398102178,1765367443598,-500.0,0.00017493,2]
[398102179,1765367443607,-2744.8464331,0.00017547,2]
[398102180,1765367443616,-214.67131067,0.00017547,2]
[398102181,1765367443627,-500.0,0.00017547,2]
[398102182,1765367443636,-470.1262053,0.00017547,2]
[398102184,1765367443646,-637.39988043,0.00017547,2]
[398102186,1765367443655,-500.0,0.00017547,2]
[398102188,1765367443664,-266.11,0.00017765,2]
[398102190,1765367443673,-500.0,0.00017766,2]
[398102192,1765367443683,-500.0,0.00017766,2]
[398102193,1765367443693,-500.0,0.00017766,2]
[398102194,1765367443702,-500.0,0.00017766,2]
[398102195,1765367443712,-500.0,0.00017767,2]
[398102196,1765367443721,-622.88,0.00017767,2]
[398102197,1765367443731,-300.0,0.00017767,2]
[398102198,1765367443740,-500.0,0.00017767,2]
[398102199,1765367443750,-500.0,0.00017767,2]
[398102200,1765367443760,-627.2370216,0.00017767,2]
[398102201,1765367443769,-500.0,0.00017767,2]
[398102202,1765367443779,-500.0,0.00017767,2]
[398102203,1765367443788,-500.0,0.00017767,2]
[398102204,1765367443798,-403.8172033,0.00017767,2]
[398102205,1765367443812,-500.0,0.00017767,2]
[398102206,1765367443822,-198.87947874,0.00017767,2]
[398102207,1765367443831,-558.78,0.00017767,2]
[398102208,1765367443841,-500.0,0.00017767,2]
[398102209,1765367443850,-500.0,0.00017767,2]
[398102210,1765367443860,-500.0,0.00017767,2]
[398102211,1765367443870,-500.0,0.00017767,2]
[398102212,1765367443879,-500.0,0.00017767,2]
[398102213,1765367443889,-500.0,0.00017767,2]
[398102214,1765367443899,-500.0,0.00017767,2]
[398102215,1765367443909,-500.0,0.00017767,2]
[398102216,1765367443919,-500.0,0.00017767,2]
[398102217,1765367444111,-500.0,0.00017821,2]
[398102218,1765367444121,-500.0,0.00017821,2]
[398102219,1765367444131,-910.0,0.0001787,2]
[398102220,1765367444140,-1195.0,0.0001787,2]
[398102221,1765367444151,-255.16429454,0.00017881,7]
[398102222,1765367444161,-60438.24759646,0.00018,2]
[398102223,1765367444171,-383.18133476,0.00018012,2]
[398102224,1765367444180,-150.07818798,0.00018015,2]
[398102225,1765367444190,-500.0,0.0001804,2]
[398102226,1765367444200,-500.0,0.0001804,2]
[398102227,1765367444211,-500.0,0.0001804,2]
[398102228,1765367444221,-500.0,0.0001804,2]
[398102229,1765367444231,-500.0,0.00018041,2]
[398102230,1765367444241,-300.0,0.00018041,2]
[398102231,1765367444251,-500.0,0.00018041,2]
[398102232,1765367444261,-381.52,0.00018041,2]
[398102233,1765367444271,-500.0,0.00018041,2]
[398102234,1765367444281,-360.33369335,0.00018041,2]
[398102235,1765367444292,-500.0,0.00018041,2]
[398102236,1765367444302,-558.78,0.00018041,2]
[398102237,1765367444312,-500.0,0.00018041,2]
[398102238,1765367444322,-500.0,0.00018041,2]
[398102239,1765367444332,-500.0,0.00018041,2]
[398102240,1765367444342,-500.0,0.00018041,2]
[398102241,1765367444351,-500.0,0.00018041,2]
[398102242,1765367444361,-606.83,0.00018041,2]
[398102243,1765367444371,-500.0,0.00018041,2]
[398102244,1765367444381,-500.0,0.00018041,2]
[398102245,1765367444391,-500.0,0.00018041,2]
[398102246,1765367444400,-1000.0,0.00018082,2]
[398102247,1765367444410,-500.0,0.00018095,2]
[398102248,1765367444419,-167.26292111,0.00018095,2]
[398102249,1765367444429,-500.0,0.00018268,2]
[398102250,1765367444439,-5000.0,0.00018269,2]
[398102251,1765367444449,-500.0,0.00018314,2]
[398102252,1765367444459,-500.0,0.00018314,2]
[398102253,1765367444468,-500.0,0.00018314,2]
[398102254,1765367444477,-500.0,0.00018315,2]
[398102255,1765367444487,-300.0,0.00018315,2]
[398102256,1765367444496,-500.0,0.00018315,2]
[398102257,1765367444509,-500.0,0.00018315,2]
[398102258,1765367444519,-500.0,0.00018315,2]
[398102259,1765367444528,-558.78,0.00018315,2]
[398102260,1765367444537,-500.0,0.00018315,2]
[398102261,1765367444547,-500.0,0.00018315,2]
[398102262,1765367444557,-500.0,0.00018315,2]
[398102263,1765367444567,-500.0,0.00018315,2]
[398102264,1765367444578,-184.68,0.00018315,2]
[398102265,1765367444588,-478.36,0.00018315,2]
[398102266,1765367444598,-500.0,0.00018315,2]
[398102267,1765367444607,-500.0,0.00018369,2]
[398102268,1765367444617,-1843.91565452,0.00018516,2]
[398102269,1765367444627,-166.66,0.00018537,2]
[398102270,1765367444637,-500.0,0.00018588,2]
[398102271,1765367444647,-500.0,0.00018588,2]
[398102272,1765367444657,-623.02,0.00018588,2]
[398102273,1765367444667,-500.0,0.00018589,2]
[398102274,1765367444676,-300.0,0.00018589,2]
[398102275,1765367444685,-500.0,0.00018589,2]
[398102276,1765367444695,-500.0,0.00018589,2]
[398102277,1765367444704,-498.15883586,0.00018589,2]
[398102278,1765367444714,-558.78,0.00018589,2]
[398102279,1765367444724,-500.0,0.00018589,2]
[398102280,1765367444733,-500.0,0.00018589,2]
[398102281,1765367444743,-285.88,0.00018589,2]
[398102282,1765367444753,-500.0,0.00018589,2]
[398102283,1765367444763,-500.0,0.00018589,2]
[398102284,1765367444774,-500.0,0.00018643,2]
[398102285,1765367444783,-1000.0,0.0001876,2]
[398102286,1765367444792,-2741.17950079,0.00018847,2]
[398102287,1765367444802,-191.09999872,0.00018862,2]
[398102288,1765367444811,-500.0,0.00018862,2]
[398102289,1765367444821,-500.0,0.00018863,2]
[398102290,1765367444830,-300.0,0.00018863,2]
[398102291,1765367444840,-176.89,0.00018863,2]
[398102292,1765367444849,-500.0,0.00018863,2]
[398102293,1765367444859,-558.78,0.00018863,2]
[398102294,1765367444869,-410.48,0.00018863,2]
[398102295,1765367444879,-500.0,0.00018863,2]
[398102296,1765367444888,-500.0,0.00018863,2]
[398102297,1765367444898,-500.0,0.00018863,2]
[398102298,1765367444908,-500.0,0.00018917,2]
[398102299,1765367444918,-166.66,0.00018927,2]
[398102300,1765367444927,-300.0,0.00019,2]
[398102301,1765367444937,-200.0,0.00019013,2]
[398102302,1765367444946,-160.48493985,0.00019078,2]
[398102303,1765367444956,-500.0,0.00019136,2]
[398102304,1765367444966,-500.0,0.00019137,2]
[398102305,1765367444975,-300.0,0.00019137,2]
[398102306,1765367444990,-500.0,0.00019137,2]
[398102307,1765367445000,-558.78,0.00019137,2]
[398102308,1765367445010,-500.0,0.00019137,2]
[398102309,1765367445021,-500.0,0.00019137,2]
[398102310,1765367445031,-500.0,0.00019137,2]
[398102311,1765367445041,-25000.0,0.00019169,3]
[398102312,1765367445051,-417.54326091,0.00019177,2]
[398102313,1765367445060,-500.0,0.00019177,2]
[398102314,1765367445071,-301.05339874,0.00019177,2]
[398102315,1765367445081,-500.0,0.00019177,2]
[398102316,1765367445090,-554.73017814,0.00019177,2]
[398102317,1765367445100,-25000.0,0.00019178,3]
[398102318,1765367445109,-151.0,0.00019178,2]
[398102319,1765367445118,-500.0,0.00019191,2]
[398102320,1765367445128,-926.0,0.00019317,2]
[398102321,1765367445138,-166.66,0.00019318,2]
[398102322,1765367445147,-500.0,0.0001941,2]
[398102323,1765367445157,-500.0,0.00019411,2]
[398102324,1765367445166,-300.0,0.00019411,2]
[398102325,1765367445175,-500.0,0.00019411,2]
[398102326,1765367445185,-558.78,0.00019411,2]
[398102327,1765367445195,-500.0,0.00019411,2]
[398102328,1765367445205,-500.0,0.00019411,2]
[398102329,1765367445215,-500.0,0.00019411,2]
[398102330,1765367445227,-1000.0,0.00019438,2]
[398102331,1765367445238,-500.0,0.00019465,2]
[398102332,1765367445249,-166.64,0.00019496,2]
[398102333,1765367445259,-926.0,0.00019516,2]
[398102334,1765367445274,-158.36,0.0001957,2]
[398102335,1765367445284,-499.97,0.00019684,2]
[398102336,1765367445293,-500.0,0.00019685,2]
[398102337,1765367445303,-300.0,0.00019685,2]
[398102338,1765367445313,-500.0,0.00019685,2]
[398102339,1765367445323,-558.78,0.00019685,2]
[398102340,1765367445333,-500.0,0.00019685,2]
[398102341,1765367445343,-500.0,0.00019685,2]
[398102342,1765367445352,-500.0,0.00019685,2]
[398102343,1765367445362,-166.66,0.00019708,2]
[398102344,1765367445372,-926.0,0.00019715,2]
[398102345,1765367445381,-470.1262053,0.00019724,2]
[398102346,1765367445390,-156.587,0.00019726,2]
[398102347,1765367445399,-500.0,0.00019739,2]
[398102348,1765367445409,-2744.8464331,0.00019782,2]
[398102349,1765367445419,-926.0,0.00019914,2]
[398102350,1765367445428,-381.84,0.00019959,2]
[398102351,1765367445438,-196.79021377,0.00019959,2]
[398102352,1765367445448,-500.0,0.00019959,2]
[398102353,1765367445458,-558.78,0.00019959,2]
[398102354,1765367445468,-500.0,0.00019959,2]
[398102355,1765367445479,-500.0,0.00019959,2]
[398102356,1765367445489,-500.0,0.00019959,2]
[398102357,1765367445498,-600.0,0.0002,2]
[398102358,1765367445508,-600.0,0.0002,2]
[398102359,1765367445518,-600.0,0.0002,2]
[398102360,1765367445528,-600.0,0.0002,2]
[398102361,1765367445537,-600.0,0.0002,2]
[398102362,1765367445547,-600.0,0.0002,2]
[398102363,1765367445557,-600.0,0.0002,2]
[398102364,1765367445567,-600.0,0.0002,2]
[398102365,1765367445577,-500.0,0.0002,2]
[398102366,1765367445586,-600.0,0.0002,2]
[398102367,1765367445595,-500.0,0.0002,2]
[398102368,1765367445605,-600.0,0.0002,2]
[398102369,1765367445614,-500.0,0.0002,2]
[398102370,1765367445623,-600.0,0.0002,2]
[398102371,1765367445633,-500.0,0.0002,2]
[398102372,1765367445643,-600.0,0.0002,2]
[398102373,1765367445653,-500.0,0.0002,2]
[398102375,1765367445663,-500.0,0.0002,2]
[398102377,1765367445673,-600.0,0.0002,2]
[398102378,1765367445682,-500.0,0.0002,2]
[398102379,1765367445691,-600.0,0.0002,2]
[398102380,1765367445701,-600.0,0.0002,2]
[398102381,1765367445711,-600.0,0.0002,2]
[398102382,1765367445721,-500.0,0.0002,2]
[398102383,1765367445730,-600.0,0.0002,2]
[398102384,1765367445740,-500.0,0.0002,2]
[398102386,1765367445750,-600.0,0.0002,2]
[398102388,1765367445761,-500.0,0.0002,2]
[398102390,1765367445771,-600.0,0.0002,2]
[398102392,1765367445782,-500.0,0.0002,2]
[398102394,1765367445792,-600.0,0.0002,2]
[398102396,1765367445802,-500.0,0.0002,2]
[398102398,1765367445812,-600.0,0.0002,2]
[398102400,1765367445822,-500.0,0.0002,2]
[398102402,1765367445832,-600.0,0.0002,2]
[398102404,1765367445843,-500.0,0.0002,2]
[398102406,1765367445852,-600.0,0.0002,2]
[398102408,1765367445863,-500.0,0.0002,2]
[398102410,1765367445874,-600.0,0.0002,2]
[398102412,1765367445884,-500.0,0.0002,2]
[398102414,1765367445894,-805.10772608,0.0002,2]
[398102416,1765367445904,-500.0,0.0002,2]
[398102418,1765367445913,-500.0,0.0002,2]
[398102420,1765367445922,-500.0,0.0002,2]
[398102422,1765367445931,-926.65346547,0.0002,2]
[398102424,1765367445941,-546.0,0.00020013,2]
[398102426,1765367445950,-166.66,0.00020098,2]
[398102428,1765367445960,-926.0,0.00020113,2]
[398102430,1765367445970,-1000.0,0.00020116,2]
[398102432,1765367445982,-655.18,0.00020187,2]
[398102434,1765367445992,-495.31,0.000202,7]
[398102435,1765367446002,-500.0,0.00020233,2]
[398102436,1765367446011,-558.78,0.00020233,2]
[398102437,1765367446022,-500.0,0.00020233,2]
[398102438,1765367446031,-619.66,0.00020233,2]
[398102439,1765367446045,-500.0,0.00020233,2]
[398102440,1765367446056,-162.380719,0.00020274,2]
[398102441,1765367446066,-926.0,0.00020312,2]
[398102442,1765367446075,-166.66,0.00020488,2]
[398102443,1765367446084,-500.0,0.00020507,2]
[398102444,1765367446095,-558.78,0.00020507,2]
[398102445,1765367446104,-500.0,0.00020507,2]
[398102446,1765367446113,-564.44,0.00020507,2]
[398102447,1765367446123,-926.0,0.00020511,2]
[398102448,1765367446132,-21414.4,0.00020548,2]
[398102449,1765367446142,-191.13,0.00020548,2]
[398102450,1765367446151,-500.0,0.00020589,2]
[398102451,1765367446160,-500.0,0.0002059,2]
[398102452,1765367446170,-500.0,0.00020591,2]
[398102453,1765367446179,-500.0,0.00020592,2]
[398102455,1765367446197,-500.0,0.00020593,2]
[398102456,1765367446206,-500.0,0.00020594,2]
[398102457,1765367446215,-500.0,0.00020595,2]
[398102458,1765367446225,-500.0,0.00020596,2]
[398102459,1765367446234,-500.0,0.00020597,2]
[398102460,1765367446244,-2000.0,0.000207,2]
[398102462,1765367446253,-500.0,0.00020781,2]
[398102463,1765367446263,-558.78,0.00020781,2]
[398102465,1765367446272,-500.0,0.00020781,2]
[398102466,1765367446282,-1000.0,0.00020795,2]
[398102467,1765367446291,-168.3888056,0.00020822,2]
[398102468,1765367446300,-150.0,0.00020902,2]
[398102469,1765367446310,-350.0,0.00021,2]
[398102470,1765367446319,-216.73472472,0.00021,7]
[398102471,1765367446330,-500.0,0.00021055,2]
[398102472,1765367446340,-558.78,0.00021055,2]
[398102473,1765367446350,-500.0,0.00021055,2]
[398102474,1765367446362,-200.0,0.00021277,2]
[398102475,1765367446380,-714.4420092,0.00021277,2]
[398102476,1765367446401,-366.70700074,0.00021277,2]
[398102477,1765367446410,-558.78,0.00021329,2]
[398102478,1765367446420,-411.74,0.00021329,2]
[398102479,1765367446430,-174.61919141,0.0002137,2]
[398102480,1765367446439,-1843.91565452,0.00021382,2]
[398102481,1765367446452,-200.0,0.0002149,2]
[398102482,1765367446463,-558.78,0.00021603,2]
[398102483,1765367446472,-2741.17950079,0.00021672,2]
[398102484,1765367446482,-397.04,0.000218,2]
[398102485,1765367446492,-558.78,0.00021877,2]
[398102486,1765367446502,-470.1262053,0.000219,2]
[398102487,1765367446512,-500.0,0.00021917,15]
[398102488,1765367446521,-438.82935215,0.00021917,15]
[398102489,1765367446531,-300.0,0.00021918,4]
[398102490,1765367446540,-5000.0,0.00021918,2]
[398102491,1765367446550,-500.0,0.00021918,4]
[398102492,1765367446559,-500.0,0.00021918,4]
[398102493,1765367446568,-500.0,0.00021918,4]
[398102494,1765367446580,-500.0,0.00021918,4]
[398102495,1765367446639,-500.0,0.00021918,4]
[398102496,1765367446649,-500.0,0.00021918,4]
[398102497,1765367446660,-500.0,0.00021918,4]
[398102498,1765367446669,-500.0,0.00021918,4]
[398102499,1765367446678,-500.0,0.00021918,4]
[398102500,1765367446687,-500.0,0.00021918,4]
[398102501,1765367446697,-181.08010149,0.00021918,2]
[398102502,1765367446707,-792.71645877,0.00022,7]
[398102503,1765367446716,-158.36,0.00022016,2]
[398102504,1765367446726,-2744.8464331,0.00022017,2]
[398102505,1765367446736,-558.96,0.00022151,2]
[398102506,1765367446745,-150.0,0.00022315,2]
[398102507,1765367446754,-213.17506843,0.00022466,2]
[398102508,1765367446764,-1000.0,0.00022507,7]
[398102509,1765367446774,-973.0,0.000226,2]
[398102510,1765367446784,-524.0,0.000226,2]
[398102511,1765367446794,-160.48493983,0.00022806,6]
[398102512,1765367446804,-250.0,0.00023288,6]
[398102513,1765367446815,-403.62475427,0.00024048,2]
[398102514,1765367446826,-151.0,0.00024048,2]
[398102515,1765367446838,-1301.0,0.00024048,2]
[398102516,1765367446847,-1280.13682254,0.00024048,2]
[398102517,1765367446856,-284.78783801,0.00024048,2]
[398102518,1765367446865,-231.82878797,0.00024048,2]
[398102519,1765367446875,-250.0,0.00024048,2]
[398102520,1765367446884,-553.64373807,0.00024048,2]
[398102521,1765367446894,-250.0,0.00024048,2]
[398102522,1765367446903,-250.0,0.00024048,2]
[398102523,1765367446913,-259.33088401,0.00024048,2]
[398102524,1765367446922,-1000.0,0.00024048,2]
[398102525,1765367446932,-1000.0,0.00024048,2]
[398102526,1765367446942,-1000.0,0.00024048,2]
[398102527,1765367446952,-1078.86550441,0.00024048,2]
[398102528,1765367446961,-437.51777015,0.00024048,2]
[398102529,1765367446970,-613.91086761,0.00024048,2]
[398102530,1765367446985,-212.004326,0.00024048,2]
[398102531,1765367446995,-267.46074303,0.00024048,2]
[398102532,1765367447003,-470.1262053,0.00024077,2]
[398102533,1765367447012,-1843.91565452,0.00024248,2]
[398102534,1765367447023,-2744.8464331,0.00024253,2]
[398102535,1765367447033,-184.47978008,0.00024348,2]
[398102536,1765367447042,-2000.0,0.000244,2]
[398102537,1765367447052,-154.32,0.00024457,2]
[398102538,1765367447063,-158.36,0.00024462,2]
[398102539,1765367447072,-2741.17950079,0.00024496,2]
[398102540,1765367447082,-238.28386992,0.000245,5]
[398102541,1765367447091,-1301.0,0.00024596,2]
[398102542,1765367447101,-574.12855637,0.00024596,2]
[398102543,1765367447111,-818.0,0.00024658,2]
[398102544,1765367447120,-818.0,0.00024658,2]
[398102545,1765367447130,-818.0,0.00024658,2]
[398102546,1765367447139,-818.0,0.00024658,2]
[398102547,1765367447148,-818.0,0.00024658,2]
[398102548,1765367447157,-818.0,0.00024658,2]
[398102549,1765367447167,-818.0,0.00024658,2]
[398102550,1765367447175,-818.0,0.00024658,2]
[398102551,1765367447184,-818.0,0.00024658,2]
[398102552,1765367447194,-818.0,0.00024658,2]
[398102553,1765367447203,-818.0,0.00024658,2]
[398102554,1765367447212,-818.0,0.00024658,2]
[398102555,1765367447221,-818.0,0.00024658,2]
[398102556,1765367447230,-818.0,0.00024658,2]
[398102557,1765367447239,-818.0,0.00024658,2]
[398102558,1765367447248,-318.0,0.00024658,2]
[398102559,1765367447258,-235.0,0.00024658,2]
[398102560,1765367447267,-1000.0,0.00024658,2]
[398102561,1765367447276,-1569.92,0.00024658,30]
[398102562,1765367447285,-205.58412653,0.0002479,2]
[398102563,1765367447294,-500.0,0.00024799,2]
[398102564,1765367447303,-500.0,0.00024799,2]
[398102565,1765367447312,-150.0,0.00024799,2]
[398102566,1765367447321,-219553.0078158,0.000248,3]
[398102567,1765367447456,-837.2883183,0.000248,3]
[398102568,1765367447468,-2833.2144198,0.000248,3]
[398102569,1765367447479,-501.9971,0.000248,3]
[398102570,1765367447490,-1654.59999995,0.000248,3]